fUSD/lending_fUSD_20240517
["ID","MTS","AMOUNT","RATE_DAILY","PERIOD"]
[327287395,1715964642577,-500.0,0.00012699,2]
[327287397,1715964642588,-500.0,0.00012699,2]
[327287399,1715964642598,-500.0,0.00012699,2]
[327287401,1715964642607,-500.0,0.00012699,2]
[327287403,1715964642616,-500.0,0.00012699,2]
[327287405,1715964642626,-500.0,0.00012699,2]
[327287407,1715964642635,-500.0,0.00012699,2]
[327287409,1715964642644,-501.44900502,0.00012699,2]
[327287411,1715964642653,-500.42590588,0.00012699,2]
[327287413,1715964642663,-541.04,0.00012699,2]
[327287415,1715964642672,-500.0,0.00012699,2]
[327287417,1715964642681,-305.41,0.00012699,2]
[327287419,1715964642690,-259.73,0.00012699,2]
[327287421,1715964642698,-500.0,0.00012699,2]
[327287423,1715964642707,-237.16559782,0.00012699,2]
[327287425,1715964642717,-247.15,0.00012699,2]
[327287427,1715964642726,-587.67337585,0.00012699,2]
[327287429,1715964642735,-500.0,0.00012699,2]
[327287431,1715964642745,-3502.95927007,0.000127,2]
[327287433,1715964642755,-1067.0,0.000127,2]
[327287435,1715964642765,-1000.0,0.000127,3]
[327287437,1715964642774,-1000.0,0.000127,2]
[327287439,1715964642784,-173.1639208,0.000127,2]
[327287441,1715964642792,-1918.66633706,0.000127,2]
[327287443,1715964642801,-175.56514033,0.00012709,2]
[327287445,1715964642810,-3502.95926996,0.00012718,2]
[327287447,1715964642819,-5282.87023674,0.00012729,2]
[327287449,1715964642828,-3502.95926996,0.00012736,2]
[327287451,1715964642841,-3502.95926996,0.00012755,2]
[327287454,1715964642851,-3502.95926996,0.00012773,2]
[327287456,1715964642861,-1186.37,0.00012784,2]
[327287457,1715964642869,-415.3,0.00012784,2]
[327287460,1715964642878,-200.0,0.00012784,2]
[327287462,1715964642888,-4589.16668298,0.00012786,2]
[327287464,1715964642897,-12058.86575342,0.0001279,2]
[327287466,1715964642905,-3502.95926996,0.00012791,2]
[327287467,1715964642914,-233.09511169,0.00012793,2]
[327287470,1715964642924,-500.0,0.00012795,2]
[327287471,1715964642933,-500.0,0.00012795,2]
[327287474,1715964642942,-500.0,0.00012795,2]
[327287476,1715964642954,-500.0,0.00012795,2]
[327287477,1715964642965,-500.0,0.00012795,2]
[327287479,1715964642974,-500.0,0.00012795,2]
[327287482,1715964642984,-500.0,0.00012795,2]
[327287483,1715964642993,-500.0,0.00012795,2]
[327287485,1715964643003,-500.0,0.00012795,2]
[327287487,1715964643012,-500.0,0.00012795,2]
[327287489,1715964643021,-500.0,0.00012795,2]
[327287492,1715964643032,-500.0,0.00012795,2]
[327287493,1715964643041,-500.0,0.00012795,2]
[327287495,1715964643050,-500.0,0.00012795,2]
[327287497,1715964643060,-500.0,0.00012795,2]
[327287500,1715964643069,-500.0,0.00012795,2]
[327287501,1715964643078,-500.0,0.00012795,2]
[327287503,1715964643090,-500.0,0.00012795,2]
[327287506,1715964643100,-500.0,0.00012795,2]
[327287507,1715964643109,-500.0,0.00012795,2]
[327287510,1715964643120,-500.0,0.00012795,2]
[327287512,1715964643129,-500.0,0.00012795,2]
[327287514,1715964643138,-888.9,0.00012795,2]
[327287516,1715964643147,-500.0,0.00012795,2]
[327287518,1715964643159,-500.0,0.00012795,2]
[327287521,1715964643168,-500.0,0.00012795,2]
[327287523,1715964643177,-500.0,0.00012795,2]
[327287525,1715964643186,-500.0,0.00012795,2]
[327287527,1715964643195,-500.0,0.00012795,2]
[327287529,1715964643205,-500.0,0.00012795,2]
[327287531,1715964643215,-500.0,0.00012795,2]
[327287533,1715964643223,-500.0,0.00012795,2]
[327287536,1715964643233,-500.0,0.00012795,2]
[327287538,1715964643242,-500.0,0.00012795,2]
[327287540,1715964643251,-500.0,0.00012795,2]
[327287542,1715964643260,-500.0,0.00012796,2]
[327287544,1715964643270,-500.0,0.00012796,2]
[327287546,1715964643279,-500.0,0.00012796,2]
[327287548,1715964643288,-500.0,0.00012796,2]
[327287551,1715964643297,-500.0,0.00012796,2]
[327287554,1715964643308,-500.0,0.00012796,2]
[327287557,1715964643317,-500.0,0.00012796,2]
[327287560,1715964643327,-450.21,0.00012796,2]
[327287561,1715964643338,-150.0,0.00012796,2]
[327287563,1715964643347,-500.0,0.00012796,2]
[327287565,1715964643356,-421.66,0.00012796,2]
[327287568,1715964643365,-500.0,0.00012796,2]
[327287571,1715964643375,-500.0,0.00012796,2]
[327287575,1715964643384,-500.0,0.00012796,2]
[327287578,1715964643394,-500.0,0.00012796,2]
[327287580,1715964643403,-529.51,0.00012796,2]
[327287582,1715964643412,-500.0,0.00012796,2]
[327287583,1715964643421,-500.0,0.00012796,2]
[327287586,1715964643432,-500.0,0.00012796,2]
[327287588,1715964643442,-500.0,0.00012796,2]
[327287589,1715964643451,-500.0,0.00012796,2]
[327287591,1715964643461,-500.0,0.00012796,2]
[327287594,1715964643470,-500.0,0.00012796,2]
[327287596,1715964643479,-500.0,0.00012796,2]
[327287597,1715964643488,-316.74,0.00012796,2]
[327287599,1715964643497,-500.0,0.00012796,2]
[327287601,1715964643507,-500.0,0.00012796,2]
[327287603,1715964643516,-500.0,0.00012796,2]
[327287605,1715964643525,-444.81,0.00012796,2]
[327287607,1715964643534,-500.0,0.00012796,2]
[327287609,1715964643543,-500.0,0.00012796,2]
[327287612,1715964643553,-546.0,0.00012796,2]
[327287615,1715964643563,-500.0,0.00012796,2]
[327287618,1715964643572,-500.0,0.00012796,2]
[327287622,1715964643582,-400.32,0.00012796,2]
[327287624,1715964643592,-500.0,0.00012796,2]
[327287626,1715964643602,-500.0,0.00012796,2]
[327287628,1715964643611,-1453.73,0.00012796,2]
[327287630,1715964643620,-500.0,0.00012796,2]
[327287632,1715964643629,-500.0,0.00012796,2]
[327287634,1715964643638,-500.0,0.00012796,2]
[327287636,1715964643648,-500.0,0.00012796,2]
[327287638,1715964643657,-500.0,0.00012796,2]
[327287640,1715964643667,-500.0,0.00012796,2]
[327287643,1715964643677,-500.0,0.00012796,2]
[327287644,1715964643688,-500.0,0.00012796,2]
[327287646,1715964643708,-500.0,0.00012796,2]
[327287648,1715964643726,-201.87192028,0.00012796,2]
[327287650,1715964643752,-500.0,0.00012796,2]
[327287653,1715964643774,-500.0,0.00012796,2]
[327287654,1715964643794,-500.0,0.00012796,2]
[327287656,1715964643814,-500.0,0.00012796,2]
[327287658,1715964643834,-500.0,0.00012796,2]
[327287660,1715964643855,-500.0,0.00012796,2]
[327287662,1715964643876,-500.0,0.00012796,2]
[327287664,1715964643894,-500.0,0.00012796,2]
[327287666,1715964643915,-492.46572184,0.00012796,2]
[327287668,1715964643924,-995.3,0.00012796,2]
[327287670,1715964643933,-500.0,0.00012796,2]
[327287672,1715964643942,-500.0,0.00012796,2]
[327287674,1715964643958,-500.0,0.00012796,2]
[327287676,1715964643967,-500.0,0.00012796,2]
[327287678,1715964643976,-527.66313223,0.00012796,2]
[327287680,1715964643986,-500.0,0.00012796,2]
[327287682,1715964643998,-500.0,0.00012796,2]
[327287684,1715964644007,-500.0,0.00012796,2]
[327287686,1715964644017,-500.0,0.00012796,2]
[327287688,1715964644029,-500.0,0.00012796,2]
[327287690,1715964644039,-500.0,0.00012796,2]
[327287692,1715964644048,-500.0,0.00012796,2]
[327287694,1715964644058,-407.2,0.00012796,2]
[327287696,1715964644068,-500.0,0.00012796,2]
[327287698,1715964644077,-500.0,0.00012796,2]
[327287700,1715964644088,-610.98,0.00012796,2]
[327287702,1715964644097,-500.0,0.00012796,2]
[327287704,1715964644106,-500.0,0.00012796,2]
[327287705,1715964644116,-500.0,0.00012796,2]
[327287707,1715964644125,-500.0,0.00012796,2]
[327287710,1715964644135,-500.0,0.00012796,2]
[327287711,1715964644144,-500.0,0.00012796,2]
[327287714,1715964644154,-369.93010621,0.00012796,2]
[327287716,1715964644163,-500.0,0.00012796,2]
[327287719,1715964644172,-500.0,0.00012796,2]
[327287721,1715964644182,-500.0,0.00012796,2]
[327287723,1715964644191,-500.0,0.00012796,2]
[327287725,1715964644200,-500.0,0.00012796,2]
[327287726,1715964644209,-500.0,0.00012796,2]
[327287729,1715964644218,-57771.34000446,0.00012797,2]
[327287748,1715964644497,-500.0,0.00012328,2]
[327287749,1715964644509,-52.20465932,0.00012797,2]
[327287750,1715964644521,-115805.57357496,0.00012797,2]
[327287751,1715964644530,-500.0,0.00012797,2]
[327287752,1715964644541,-500.0,0.00012797,2]
[327287753,1715964644551,-500.0,0.00012797,2]
[327287754,1715964644561,-500.0,0.00012797,2]
[327287755,1715964644571,-500.0,0.00012797,2]
[327287756,1715964644581,-500.0,0.00012797,2]
[327287757,1715964644592,-500.0,0.00012797,2]
[327287758,1715964644601,-500.0,0.00012797,2]
[327287759,1715964644611,-500.0,0.00012797,2]
[327287760,1715964644620,-500.0,0.00012797,2]
[327287761,1715964644630,-500.0,0.00012797,2]
[327287762,1715964644640,-500.0,0.00012797,2]
[327287763,1715964644649,-500.0,0.00012797,2]
[327287764,1715964644658,-500.0,0.00012797,2]
[327287765,1715964644668,-995.3,0.00012797,2]
[327287766,1715964644677,-500.0,0.00012797,2]
[327287767,1715964644686,-500.0,0.00012797,2]
[327287768,1715964644696,-500.0,0.00012797,2]
[327287769,1715964644706,-500.0,0.00012797,2]
[327287770,1715964644715,-500.0,0.00012797,2]
[327287771,1715964644725,-500.0,0.00012797,2]
[327287772,1715964644734,-205.27,0.00012797,2]
[327287773,1715964644744,-500.0,0.00012797,2]
[327287774,1715964644754,-232.11915863,0.00012797,2]
[327287775,1715964644763,-500.0,0.00012797,2]
[327287776,1715964644772,-500.0,0.00012797,2]
[327287777,1715964644782,-500.0,0.00012797,2]
[327287778,1715964644791,-449.73,0.00012797,2]
[327287779,1715964644800,-500.0,0.00012797,2]
[327287780,1715964644809,-500.0,0.00012797,2]
[327287781,1715964644819,-500.0,0.00012797,2]
[327287782,1715964644829,-500.0,0.00012797,2]
[327287783,1715964644838,-313.13540601,0.00012797,2]
[327287784,1715964644848,-500.0,0.00012797,2]
[327287785,1715964644857,-888.9,0.00012797,2]
[327287786,1715964644867,-500.0,0.00012797,2]
[327287787,1715964644876,-500.0,0.00012797,2]
[327287788,1715964644885,-500.0,0.00012797,2]
[327287789,1715964644894,-500.0,0.00012797,2]
[327287790,1715964644904,-500.0,0.00012797,2]
[327287791,1715964644914,-500.0,0.00012797,2]
[327287792,1715964644923,-500.0,0.00012797,2]
[327287793,1715964644932,-500.0,0.00012797,2]
[327287794,1715964644941,-500.0,0.00012797,2]
[327287795,1715964644953,-500.0,0.00012797,2]
[327287796,1715964644964,-155.0,0.00012798,2]
[327287797,1715964644974,-643.1326905,0.00012798,2]
[327287798,1715964644983,-656.14610936,0.00012798,2]
[327287799,1715964644994,-156.04687632,0.00012798,2]
[327287800,1715964645004,-623.222624,0.00012798,2]
[327287801,1715964645014,-3059.56614413,0.00012798,2]
[327287802,1715964645024,-24986.05242493,0.00012798,2]
[327287803,1715964645033,-207.30614229,0.00012798,2]
[327287804,1715964645046,-817.82411991,0.00012798,2]
[327287805,1715964645055,-365.36565537,0.00012798,2]
[327287806,1715964645065,-259.66694049,0.00012798,2]
[327287807,1715964645074,-158.05804344,0.00012798,2]
[327287808,1715964645085,-18396.68014826,0.00012798,2]
[327287809,1715964645094,-324.42510247,0.00012798,2]
[327287810,1715964645104,-261.77595692,0.00012798,2]
[327287811,1715964645113,-377.35579036,0.00012798,2]
[327287812,1715964645123,-1750.0,0.00012798,2]
[327287813,1715964645132,-155.0,0.00012798,2]
[327287814,1715964645142,-709.02554464,0.00012798,2]
[327287815,1715964645152,-269.03199688,0.00012798,2]
[327287816,1715964645161,-1153.90392012,0.00012798,2]
[327287817,1715964645171,-155.0,0.00012798,2]
[327287818,1715964645181,-157.76427414,0.00012798,2]
[327287819,1715964645190,-318.74671446,0.00012798,2]
[327287820,1715964645200,-336.05422805,0.00012798,2]
[327287821,1715964645210,-500.0,0.00012798,2]
[327287822,1715964645396,-500.0,0.00012798,2]
[327287823,1715964645407,-500.0,0.00012798,2]
[327287824,1715964645417,-500.0,0.00012798,2]
[327287825,1715964645427,-375.94,0.00012798,2]
[327287826,1715964645436,-500.0,0.00012798,2]
[327287827,1715964645446,-500.0,0.00012798,2]
[327287828,1715964645455,-500.0,0.00012798,2]
[327287829,1715964645464,-609.16,0.00012798,2]
[327287830,1715964645474,-638.39,0.00012798,2]
[327287831,1715964645483,-500.0,0.00012798,2]
[327287832,1715964645492,-500.0,0.00012798,2]
[327287833,1715964645502,-500.0,0.00012798,2]
[327287834,1715964645512,-500.0,0.00012798,2]
[327287835,1715964645521,-223.03,0.00012798,2]
[327287836,1715964645530,-500.0,0.00012798,2]
[327287837,1715964645539,-150.0,0.00012798,2]
[327287838,1715964645549,-429.51661451,0.00012798,2]
[327287839,1715964645558,-500.0,0.00012798,2]
[327287840,1715964645567,-500.0,0.00012798,2]
[327287841,1715964645576,-462.19,0.00012798,2]
[327287842,1715964645586,-500.0,0.00012798,2]
[327287843,1715964645595,-500.0,0.00012798,2]
[327287844,1715964645605,-529.51,0.00012798,2]
[327287845,1715964645614,-500.0,0.00012798,2]
[327287846,1715964645625,-500.0,0.00012798,2]
[327287847,1715964645634,-500.0,0.00012798,2]
[327287848,1715964645643,-500.0,0.00012798,2]
[327287849,1715964645652,-500.0,0.00012798,2]
[327287850,1715964645662,-500.0,0.00012798,2]
[327287851,1715964645671,-348.76,0.00012798,2]
[327287852,1715964645680,-541.04,0.00012798,2]
[327287853,1715964645690,-500.0,0.00012798,2]
[327287854,1715964645699,-500.0,0.00012798,2]
[327287855,1715964645708,-500.0,0.00012798,2]
[327287856,1715964645719,-1453.73,0.00012798,2]
[327287857,1715964645728,-500.0,0.00012798,2]
[327287858,1715964645737,-401.72445338,0.00012798,2]
[327287859,1715964645747,-262.36655764,0.00012798,2]
[327287860,1715964645756,-196.32,0.00012798,2]
[327287861,1715964645766,-500.0,0.00012798,2]
[327287862,1715964645776,-500.0,0.00012798,2]
[327287863,1715964645786,-500.0,0.00012798,2]
[327287864,1715964645795,-349.32,0.00012798,2]
[327287865,1715964645804,-500.0,0.00012798,2]
[327287866,1715964645813,-500.0,0.00012798,2]
[327287867,1715964645822,-500.0,0.00012798,2]
[327287868,1715964645832,-500.0,0.00012798,2]
[327287869,1715964645843,-500.0,0.00012798,2]
[327287870,1715964645852,-500.0,0.00012798,2]
[327287871,1715964645861,-500.0,0.00012798,2]
[327287872,1715964645870,-500.0,0.00012798,2]
[327287873,1715964645880,-393.61107984,0.00012798,2]
[327287874,1715964645895,-106.38892016,0.00012798,2]
[327287875,1715964645906,-500.0,0.00012798,2]
[327287876,1715964645916,-167.4870781,0.00012798,2]
[327287881,1715964646693,-500.0,0.00012328,2]
[327287882,1715964646703,-59.9429219,0.00012798,2]
[327287883,1715964646712,-888.9,0.00012798,2]
[327287884,1715964646721,-500.0,0.00012798,2]
[327287885,1715964646731,-500.0,0.00012798,2]
[327287886,1715964646740,-500.0,0.00012798,2]
[327287887,1715964646750,-500.0,0.00012798,2]
[327287888,1715964646759,-500.0,0.00012798,2]
[327287889,1715964646769,-500.0,0.00012798,2]
[327287890,1715964646779,-3698.553,0.00012798,2]
[327287891,1715964646788,-150.01,0.00012799,2]
[327287892,1715964646798,-15683.99605321,0.00012799,2]
[327287893,1715964646807,-500.0,0.00012799,2]
[327287894,1715964646816,-500.0,0.00012799,2]
[327287895,1715964646826,-500.0,0.00012799,2]
[327287896,1715964646835,-500.0,0.00012799,2]
[327287897,1715964646849,-500.0,0.00012799,2]
[327287898,1715964646858,-205.68,0.00012799,2]
[327287899,1715964646867,-500.0,0.00012799,2]
[327287900,1715964646877,-500.0,0.00012799,2]
[327287901,1715964646886,-500.0,0.00012799,2]
[327287902,1715964646896,-500.0,0.00012799,2]
[327287903,1715964646905,-500.0,0.00012799,2]
[327287904,1715964646914,-292.58,0.00012799,2]
[327287905,1715964646923,-500.0,0.00012799,2]
[327287906,1715964646933,-500.0,0.00012799,2]
[327287907,1715964646942,-335.62526773,0.00012799,2]
[327287908,1715964646954,-258.754884,0.00012799,2]
[327287909,1715964646965,-500.0,0.00012799,2]
[327287910,1715964646975,-500.0,0.00012799,2]
[327287911,1715964646984,-500.0,0.00012799,2]
[327287912,1715964646994,-500.0,0.00012799,2]
[327287913,1715964647004,-500.0,0.00012799,2]
[327287914,1715964647013,-500.0,0.00012799,2]
[327287915,1715964647022,-500.0,0.00012799,2]
[327287916,1715964647034,-500.0,0.00012799,2]
[327287917,1715964647043,-272.36483324,0.00012799,2]
[327287918,1715964647052,-500.0,0.00012799,2]
[327287919,1715964647061,-559.13765112,0.00012799,2]
[327287920,1715964647071,-313.11,0.00012799,2]
[327287921,1715964647080,-150.0,0.00012799,2]
[327287922,1715964647093,-150.0,0.00012799,2]
[327287923,1715964647102,-258.15,0.00012799,2]
[327287924,1715964647112,-500.0,0.00012799,2]
[327287925,1715964647121,-500.0,0.00012799,2]
[327287926,1715964647131,-500.0,0.00012799,2]
[327287927,1715964647139,-500.0,0.00012799,2]
[327287928,1715964647149,-500.0,0.00012799,2]
[327287929,1715964647158,-568.68,0.00012799,2]
[327287930,1715964647167,-500.0,0.00012799,2]
[327287931,1715964647176,-500.0,0.00012799,2]
[327287932,1715964647186,-500.0,0.00012799,2]
[327287933,1715964647195,-529.51,0.00012799,2]
[327287934,1715964647204,-529.51,0.00012799,2]
[327287935,1715964647213,-529.51,0.00012799,2]
[327287936,1715964647223,-529.51,0.00012799,2]
[327287937,1715964647232,-529.51,0.00012799,2]
[327287938,1715964647241,-529.51,0.00012799,2]
[327287939,1715964647249,-529.51,0.00012799,2]
[327287940,1715964647259,-529.51,0.00012799,2]
[327287941,1715964647267,-529.51,0.00012799,2]
[327287942,1715964647276,-529.51,0.00012799,2]
[327287943,1715964647285,-529.51,0.00012799,2]
[327287944,1715964647295,-529.51,0.00012799,2]
[327287945,1715964647304,-529.51,0.00012799,2]
[327287946,1715964647313,-529.51,0.00012799,2]
[327287947,1715964647322,-529.51,0.00012799,2]
[327287948,1715964647331,-529.51,0.00012799,2]
[327287949,1715964647342,-529.51,0.00012799,2]
[327287950,1715964647351,-500.0,0.00012799,2]
[327287951,1715964647360,-426.67,0.00012799,2]
[327287952,1715964647371,-529.51,0.00012799,2]
[327287953,1715964647380,-529.51,0.00012799,2]
[327287954,1715964647389,-529.51,0.00012799,2]
[327287955,1715964647399,-529.7,0.00012799,2]
[327287956,1715964647408,-500.0,0.00012799,2]
[327287957,1715964647418,-241.21184443,0.00012799,2]
[327287958,1715964647427,-581.45355316,0.00012799,2]
[327287959,1715964647436,-500.0,0.00012799,2]
[327287960,1715964647445,-500.0,0.00012799,2]
[327287961,1715964647454,-341.87,0.00012799,2]
[327287962,1715964647463,-500.0,0.00012799,2]
[327287963,1715964647472,-500.0,0.00012799,2]
[327287964,1715964647481,-483.49,0.00012799,2]
[327287965,1715964647491,-541.04,0.00012799,2]
[327287966,1715964647499,-541.04,0.00012799,2]
[327287967,1715964647509,-541.04,0.00012799,2]
[327287968,1715964647519,-541.04,0.00012799,2]
[327287969,1715964647528,-541.04,0.00012799,2]
[327287970,1715964647538,-541.04,0.00012799,2]
[327287971,1715964647547,-541.04,0.00012799,2]
[327287972,1715964647557,-541.04,0.00012799,2]
[327287973,1715964647566,-541.04,0.00012799,2]
[327287974,1715964647575,-541.04,0.00012799,2]
[327287975,1715964647584,-541.04,0.00012799,2]
[327287976,1715964647595,-541.04,0.00012799,2]
[327287977,1715964647605,-541.04,0.00012799,2]
[327287978,1715964647615,-541.04,0.00012799,2]
[327287979,1715964647624,-541.04,0.00012799,2]
[327287980,1715964647633,-541.04,0.00012799,2]
[327287981,1715964647643,-463.27999119,0.00012799,2]
[327287982,1715964657900,3982.74413388,8.468e-05,2]
[327287983,1715964662608,970.08187611,8.468e-05,2]
[327287991,1715964737122,970.08187611,8.468e-05,2]
[327287994,1715964751130,746.21155463,8.468e-05,2]
[327288002,1715964946488,308.06,0.000235,120]
[327288134,1715965831682,-637.02688497,9.081e-05,2]
[327288135,1715965831693,-649.0224662,9.082e-05,2]
[327288136,1715965831702,-447.26,9.083e-05,2]
[327288137,1715965831712,-168.80997117,9.083e-05,2]
[327288138,1715965831722,-1000.0,0.0001086,2]
[327288139,1715965831732,-500.0,0.00010865,2]
[327288140,1715965831742,-832.4,0.0001088,2]
[327288141,1715965831752,-1644.33,0.00010893,2]
[327288142,1715965831762,-1716.28,0.00010895,2]
[327288143,1715965831771,-1139.65,0.00010904,2]
[327288144,1715965831781,-227.07,0.0001091,2]
[327288145,1715965831790,-2435.99,0.00010959,2]
[327288146,1715965831800,-13695.05,0.00010959,2]
[327288147,1715965831809,-150.0,0.00010984,2]
[327288148,1715965831819,-2055.38,0.00010998,2]
[327288149,1715965831828,-150.0,0.00010999,2]
[327288150,1715965831838,-200.0,0.00011,2]
[327288151,1715965831848,-552.43,0.00011,2]
[327288152,1715965831857,-1349.96,0.00011001,2]
[327288153,1715965831866,-23880.0,0.00011006,2]
[327288154,1715965831883,-200.0,0.00011013,2]
[327288155,1715965831892,-250.0,0.00011125,2]
[327288156,1715965831901,-299.99,0.00011171,2]
[327288157,1715965831909,-168.24,0.00011177,2]
[327288158,1715965831919,-164.29,0.0001121,2]
[327288159,1715965831928,-168.24,0.00011274,2]
[327288160,1715965831937,-294.94,0.0001129,2]
[327288161,1715965831946,-447.26,0.00011347,2]
[327288162,1715965831955,-168.24,0.00011371,2]
[327288163,1715965831964,-153.02,0.00011464,2]
[327288164,1715965831973,-168.24,0.00011468,2]
[327288165,1715965831982,-153.02,0.00011472,2]
[327288166,1715965831992,-153.02,0.0001148,2]
[327288167,1715965832001,-176.32,0.00011485,2]
[327288168,1715965832010,-153.02,0.00011489,2]
[327288170,1715965832020,-153.02,0.00011497,2]
[327288172,1715965832029,-153.02,0.00011505,2]
[327288173,1715965832038,-153.02,0.00011513,2]
[327288175,1715965832048,-278.15519185,0.00011518,2]
[327288177,1715965832057,-153.02,0.00011521,2]
[327288179,1715965832067,-168.24,0.00011565,2]
[327288181,1715965832077,-168.24,0.00011662,2]
[327288184,1715965832086,-168.24,0.00011759,2]
[327288186,1715965832096,-3651.488,0.00012077,2]
[327288187,1715965832105,-30094.7027,0.00012078,2]
[327288190,1715965832114,-29999.99,0.00012087,2]
[327288191,1715965832127,-1206.97,0.00012087,2]
[327288194,1715965832136,-8306.82,0.00012087,2]
[327288196,1715965832145,-5900.34,0.00012087,2]
[327288197,1715965832154,-1000.0,0.00012217,2]
[327288198,1715965832163,-202.615123,0.00012226,2]
[327288199,1715965832172,-151.851773,0.00012226,2]
[327288200,1715965832181,-151.851773,0.00012226,2]
[327288201,1715965832190,-151.851773,0.00012226,2]
[327288202,1715965832199,-202.46904,0.00012226,2]
[327288203,1715965832208,-3609.253,0.00012328,2]
[327288204,1715965832219,-4895.0,0.00012328,2]
[327288205,1715965832228,-500.0,0.00012328,2]
[327288206,1715965832238,-500.0,0.00012328,2]
[327288207,1715965832247,-153.8,0.00012328,2]
[327288208,1715965832256,-334.36920868,0.00012328,2]
[327288209,1715965832265,-500.0,0.00012328,2]
[327288210,1715965832275,-500.0,0.00012328,2]
[327288211,1715965832284,-500.0,0.00012328,2]
[327288212,1715965832293,-1564.36069654,0.00012384,2]
[327288213,1715965832303,-151.851773,0.00012474,2]
[327288214,1715965832312,-151.851773,0.00012474,2]
[327288215,1715965832321,-151.851773,0.00012474,2]
[327288216,1715965832334,-1000.0,0.000126,2]
[327288217,1715965832352,-326.33315642,0.00012647,2]
[327288218,1715965832361,-517.97554354,0.00012672,2]
[327288219,1715965832371,-326.33315636,0.00012675,2]
[327288220,1715965832381,-1173.46765146,0.0001268,2]
[327288221,1715965832390,-1777.3476,0.00012697,2]
[327288222,1715965832399,-200.0,0.00012698,2]
[327288223,1715965832407,-1000.0,0.00012698,2]
[327288224,1715965832417,-500.0,0.00012698,2]
[327288225,1715965832426,-4318.0737,0.00012699,2]
[327288226,1715965832436,-175.56514032,0.000127,2]
[327288227,1715965832446,-4944.52304938,0.000127,2]
[327288228,1715965832455,-173.1639208,0.000127,2]
[327288229,1715965832464,-326.33315636,0.00012703,2]
[327288230,1715965832473,-4921.57977983,0.00012718,2]
[327288231,1715965832486,-22.94326954,0.00012718,2]
[327288232,1715965832495,-151.851773,0.00012721,2]
[327288233,1715965832504,-125.19495746,0.00012721,2]
[327288234,1715965832539,-26.65681554,0.00012721,2]
[327288235,1715965832548,-151.851773,0.00012721,2]
[327288236,1715965832558,-326.33315636,0.00012731,2]
[327288237,1715965832567,-500.0,0.00012736,2]
[327288238,1715965832576,-500.0,0.00012736,2]
[327288239,1715965832586,-500.0,0.00012736,2]
[327288240,1715965832595,-500.0,0.00012736,2]
[327288241,1715965832605,-512.8406,0.00012736,2]
[327288242,1715965832615,-4944.52304937,0.00012736,2]
[327288243,1715965832626,-200.0,0.00012747,2]
[327288244,1715965832634,-1979.77090895,0.00012755,2]
[327288253,1715965837701,-2964.75214042,0.00012755,2]
[327288255,1715965837710,-326.33315636,0.00012759,2]
[327288256,1715965837720,-200.0,0.00012764,2]
[327288258,1715965837729,-1000.0,0.00012764,2]
[327288260,1715965837739,-500.0,0.00012764,2]
[327288262,1715965837748,-4944.52304937,0.00012773,2]
[327288263,1715965837758,-869.2,0.00012784,2]
[327288264,1715965837768,-869.2,0.00012784,2]